bitfinex-derivatives/quotes_BTCF0:USTF0_20210404
["timestamp","ask_amount","ask_price","bid_price","bid_amount"]
[1617510127379,0.44378134,57564.0,57555.0,3.34815655]
[1617510127779,0.44377538,57565.0,57555.0,3.34815655]
[1617510127979,0.44377538,57565.0,57564.0,0.10725655]
[1617510128178,0.44376741,57566.0,57564.0,0.10725655]
[1617510128581,0.44376589,57567.0,57564.0,0.10725655]
[1617510128980,0.44376433,57568.0,57564.0,0.10725655]
[1617510129980,0.10725655,57565.0,57564.0,0.10725655]
[1617510135686,0.10725655,57565.0,57564.0,2.88305655]
[1617510140793,0.10725655,57565.0,57564.0,3.05243655]
[1617510143896,0.10725655,57565.0,57564.0,0.10725655]
[1617510146703,0.10725655,57565.0,57564.0,3.12635655]
[1617510147102,0.10725655,57565.0,57564.0,0.10725655]
[1617510147701,1.10725655,57565.0,57564.0,0.10725655]
[1617510150311,1.10725655,57565.0,57548.0,3.0203]
[1617510152108,1.0,57565.0,57549.0,0.10725655]
[1617510152308,1.0,57557.0,57549.0,0.10725655]
[1617510152507,1.14204,57557.0,57549.0,0.10725655]
[1617510153511,0.14204,57557.0,57556.0,2.7577]
[1617510154110,0.24929655,57557.0,57556.0,2.7577]
[1617510154712,0.24929655,57557.0,57549.0,3.35965655]
[1617510154713,1.24929655,57557.0,57549.0,3.35965655]
[1617510155113,1.0,57556.0,57549.0,3.35965655]
[1617510156214,0.10725655,57550.0,57549.0,3.35965655]
[1617510159721,1.0,57556.0,57549.0,3.35965655]
[1617510159918,1.0,57572.0,57549.0,0.10725655]
[1617510160119,1.0,57573.0,57571.0,0.10725655]
[1617510161221,1.0,57575.0,57571.0,0.10725655]
[1617510161421,1.0,57572.0,57571.0,0.10725655]
[1617510161820,0.4827,57578.0,57571.0,0.10725655]
[1617510162022,0.4663,57584.0,57571.0,0.10725655]
[1617510162222,1.10725655,57572.0,57571.0,0.10725655]
[1617510163021,1.22689655,57572.0,57571.0,0.10725655]
[1617510163620,0.22689655,57572.0,57571.0,0.10725655]
[1617510163821,1.22689655,57572.0,57571.0,0.10725655]
[1617510164022,1.10725655,57572.0,57571.0,0.10725655]
[1617510164621,0.10725655,57572.0,57571.0,0.10725655]
[1617510165424,1.10725655,57572.0,57571.0,0.10725655]
[1617510168326,2.7928,57569.0,57539.0,3.1877]
[1617510168727,1.5,57568.0,57539.0,3.1877]
[1617510168927,1.0,57549.0,57539.0,3.1877]
[1617510169129,1.14222,57549.0,57532.0,0.49833078]
[1617510169326,1.0,57546.0,57532.0,0.49833078]
[1617510169526,1.0,57541.0,57527.0,0.498817]
[1617510169930,1.0,57541.0,57496.0,0.0526]
[1617510169931,1.0,57533.0,57524.0,0.49910627]
[1617510170126,1.17082,57533.0,57524.0,0.49910627]
[1617510170328,1.17082,57533.0,57532.0,0.10725655]
[1617510170529,0.17082,57533.0,57532.0,0.10725655]
[1617510171628,0.17082,57533.0,57532.0,3.57135655]
[1617510172231,0.10725655,57534.0,57532.0,3.57135655]
[1617510173029,0.14222,57549.0,57532.0,3.57135655]
[1617510173030,1.0,57539.0,57532.0,3.57135655]
[1617510173229,1.0,57548.0,57532.0,3.57135655]
[1617510173630,1.0,57548.0,57533.0,0.052]
[1617510174230,1.0,57548.0,57547.0,0.10725655]
[1617510174629,1.0,57548.0,57547.0,3.67605655]
[1617510174830,1.0,57548.0,57547.0,3.5688]
[1617510175630,0.44430195,57557.0,57547.0,3.5688]
[1617510175829,1.0,57548.0,57525.0,2.8651]
[1617510176229,1.0,57533.0,57532.0,0.10725655]
[1617510176431,1.1618,57533.0,57532.0,0.10725655]
[1617510177833,0.1618,57533.0,57532.0,0.10725655]
[1617510180840,1.0,57541.0,57532.0,0.10725655]
[1617510181236,1.0,57540.0,57532.0,0.10725655]
[1617510181437,0.16899,57544.0,57532.0,0.10725655]
[1617510181636,1.0,57541.0,57532.0,0.10725655]
[1617510182236,1.0,57541.0,57540.0,0.10725655]
[1617510183637,1.0,57541.0,57525.0,2.8651]
[1617510184336,1.0,57541.0,57532.0,0.10725655]
[1617510184737,0.2,57541.0,57525.0,2.8651]
[1617510184938,0.2,57541.0,57518.0,0.50202802]
[1617510184939,1.0,57533.0,57518.0,0.50202802]
[1617510185137,1.0,57526.0,57518.0,0.50202802]
[1617510185340,1.10508,57526.0,57518.0,0.50202802]
[1617510185538,1.10508,57526.0,57514.0,0.50241465]
[1617510185539,1.0,57519.0,57514.0,0.50241465]
[1617510185940,0.2,57518.0,57508.0,0.50296476]
[1617510186341,0.2,57518.0,57507.0,0.50315138]
[1617510186342,0.10725655,57509.0,57507.0,0.50315138]
[1617510186541,1.27731655,57509.0,57507.0,0.50315138]
[1617510186744,1.27731655,57509.0,57504.0,0.10725655]
[1617510186940,1.0,57508.0,57504.0,0.10725655]
[1617510187443,0.27731655,57509.0,57504.0,0.10725655]
[1617510188545,0.27731655,57509.0,57504.0,0.61089006]
[1617510188745,1.0,57508.0,57504.0,0.61089006]
[1617510189345,1.0,57508.0,57504.0,0.10725655]
[1617510189545,0.27731655,57509.0,57504.0,0.10725655]
[1617510189744,0.17006,57509.0,57504.0,0.10725655]
[1617510190245,0.17006,57509.0,57506.0,0.5034028]
[1617510190846,0.17006,57509.0,57508.0,0.50306501]
[1617510191748,1.0,57519.0,57515.0,2.5911]
[1617510191948,1.0,57531.0,57515.0,2.5911]
[1617510192147,0.44493516,57537.0,57508.0,2.66509]
[1617510192148,1.0,57536.0,57508.0,2.66509]
[1617510192348,1.0,57536.0,57529.0,2.5899]
[1617510192548,0.4691,57538.0,57533.0,0.10725655]
[1617510192748,1.4814,57542.0,57533.0,0.10725655]
[1617510192949,0.4814,57542.0,57541.0,2.8154]
[1617510193148,0.4814,57542.0,57541.0,2.96118]
[1617510193348,1.0,57544.0,57541.0,2.96118]
[1617510194549,1.0,57544.0,57543.0,0.10725655]
[1617510196454,1.10725655,57544.0,57543.0,0.10725655]
[1617510196653,0.10725655,57544.0,57543.0,0.10725655]
[1617510196854,1.10725655,57544.0,57543.0,0.10725655]
[1617510198555,0.10725655,57544.0,57543.0,0.10725655]
[1617510199359,2.806,57542.0,57520.0,0.49928014]
[1617510199956,2.806,57542.0,57512.0,0.49999645]
[1617510200356,2.806,57542.0,57511.0,0.50015719]
[1617510200357,0.2,57541.0,57511.0,0.50015719]
[1617510200557,0.2,57541.0,57520.0,0.10725655]
[1617510201657,1.0,57531.0,57520.0,0.10725655]
[1617510201855,1.10568,57531.0,57520.0,0.10725655]
[1617510202457,0.10725655,57521.0,57520.0,0.10725655]
[1617510203261,0.10725655,57521.0,57509.0,0.50014137]
[1617510203459,0.10725655,57521.0,57506.0,0.50037665]
[1617510203660,1.0,57516.0,57506.0,0.50037665]
[1617510203860,1.14162,57516.0,57502.0,0.50095136]
[1617510204260,1.14162,57516.0,57501.0,0.50109644]
[1617510204464,1.0,57515.0,57501.0,0.50109644]
[1617510204673,1.0,57515.0,57509.0,0.10725655]
[1617510204866,1.0,57512.0,57501.0,0.50109644]
[1617510205061,1.0,57512.0,57499.0,0.50129246]
[1617510205262,1.0,57511.0,57499.0,0.50129246]
[1617510206061,1.0,57511.0,57486.0,1.5]
[1617510206062,1.0,57511.0,57498.0,0.50138939]
[1617510206465,1.0,57511.0,57499.0,0.50134416]
[1617510206661,1.0,57511.0,57502.0,0.10725655]
[1617510206862,1.0,57512.0,57502.0,0.10725655]
[1617510207062,1.0,57516.0,57502.0,0.10725655]
[1617510207262,1.0,57516.0,57511.0,3.2198]
[1617510207461,1.0,57518.0,57511.0,3.2198]
[1617510207661,1.0,57523.0,57511.0,3.2198]
[1617510207861,1.5,57535.0,57511.0,3.2198]
[1617510208062,1.0,57513.0,57511.0,3.2198]
[1617510208564,1.0,57513.0,57512.0,0.10725655]
[1617510210562,1.10725655,57513.0,57512.0,0.10725655]
[1617510211766,1.10725655,57513.0,57511.0,3.2198]
[1617510213967,1.0,57512.0,57511.0,3.2198]
[1617510214365,0.10725655,57513.0,57511.0,3.2198]
[1617510214366,1.10725655,57513.0,57511.0,3.2198]
[1617510214566,1.10725655,57513.0,57512.0,0.10725655]
[1617510214966,0.10725655,57513.0,57512.0,0.10725655]
[1617510215166,1.0,57520.0,57512.0,0.10725655]
[1617510216567,0.10725655,57513.0,57512.0,0.10725655]
[1617510216766,0.25229655,57513.0,57512.0,0.10725655]
[1617510217268,1.25229655,57513.0,57512.0,0.10725655]
[1617510220672,0.25229655,57513.0,57512.0,0.10725655]
[1617510223478,3.79319655,57513.0,57512.0,0.10725655]
[1617510223677,3.79319655,57513.0,57500.0,0.50066608]
[1617510224078,3.79319655,57513.0,57498.0,0.50114828]
[1617510224679,3.79319655,57513.0,57502.0,0.10725655]
[1617510224680,3.68594,57513.0,57502.0,0.10725655]
[1617510225481,1.0,57511.0,57502.0,0.10725655]
[1617510225880,1.0,57511.0,57505.0,0.50380242]
[1617510226582,0.10725655,57506.0,57505.0,0.50380242]
[1617510227182,0.10725655,57506.0,57502.0,0.10725655]
[1617510227183,0.10725655,57506.0,57504.0,0.50412854]
[1617510227984,0.10725655,57506.0,57502.0,0.10725655]
[1617510227985,0.10725655,57506.0,57505.0,0.50412452]
[1617510229203,1.10725655,57506.0,57503.0,0.50388632]
[1617510229792,1.0,57504.0,57498.0,0.50456531]
[1617510230186,1.0,57504.0,57481.0,0.7981289]
[1617510230187,1.0,57504.0,57496.0,0.50479857]
[1617510230386,0.10725655,57506.0,57496.0,0.50479857]
[1617510230586,0.10725655,57497.0,57496.0,0.50479857]
[1617510230792,0.27396655,57497.0,57496.0,0.50479857]
[1617510238094,1.27396655,57497.0,57496.0,0.50479857]
[1617510238895,0.27396655,57497.0,57496.0,0.50479857]
[1617510240196,0.10725655,57497.0,57496.0,0.50479857]
[1617510240796,0.10725655,57503.0,57496.0,0.50479857]
[1617510241397,0.10725655,57503.0,57502.0,0.50425021]
[1617510242697,0.10725655,57503.0,57502.0,0.61150676]
[1617510244199,1.10725655,57503.0,57502.0,0.61150676]
[1617510244399,1.10725655,57503.0,57502.0,0.10725655]
[1617510248004,1.24264655,57503.0,57502.0,0.10725655]
[1617510250910,1.24264655,57503.0,57500.0,0.50440654]
[1617510251509,1.24264655,57503.0,57481.0,0.09173742]
[1617510251510,0.24264655,57503.0,57498.0,0.50473947]
[1617510251709,1.0,57501.0,57498.0,0.50473947]
[1617510251910,1.0,57501.0,57497.0,0.50465178]
[1617510252712,1.0,57501.0,57500.0,0.10725655]
[1617510253311,0.24264655,57503.0,57498.0,0.50446838]
[1617510253511,3.7021,57499.0,57498.0,0.50446838]
[1617510253712,3.7021,57499.0,57496.0,0.50468668]
[1617510253911,4.7021,57499.0,57496.0,0.50468668]
[1617510254112,4.7021,57499.0,57491.0,0.50516926]
[1617510254311,1.0,57497.0,57491.0,0.50516926]
[1617510254512,0.2,57496.0,57488.0,0.50540808]
[1617510254713,0.10725655,57489.0,57488.0,0.50540808]
[1617510254914,0.24795655,57489.0,57488.0,0.50540808]
[1617510255414,0.24795655,57489.0,57477.0,0.10725655]
[1617510255415,0.24795655,57489.0,57487.0,0.50555196]
[1617510255717,0.24795655,57489.0,57485.0,0.50580239]
[1617510256115,0.24795655,57489.0,57484.0,0.50589391]
[1617510256315,1.0,57486.0,57484.0,0.50589391]
[1617510257316,1.0,57485.0,57484.0,0.50589391]
[1617510257516,0.24795655,57489.0,57484.0,0.50589391]
[1617510257718,1.0,57485.0,57484.0,0.50589391]
[1617510258820,1.0,57485.0,57483.0,0.50588499]
[1617510259420,4.2587,57484.0,57483.0,0.50588499]
[1617510259619,4.2587,57484.0,57475.0,0.50656862]
[1617510260021,4.2587,57484.0,57456.0,0.09176539]
[1617510260022,4.2587,57484.0,57473.0,0.50670133]
[1617510260620,4.2587,57484.0,57472.0,0.5066553]
[1617510260819,0.10725655,57473.0,57472.0,0.5066553]
[1617510261022,0.10725655,57473.0,57467.0,0.10725655]
[1617510261023,0.25196655,57473.0,57467.0,0.10725655]
[1617510262725,1.0,57468.0,57467.0,0.10725655]
[1617510263224,0.25196655,57473.0,57467.0,0.10725655]
[1617510264425,1.25196655,57473.0,57467.0,0.10725655]
[1617510265627,1.25196655,57473.0,57467.0,0.61252762]
[1617510266027,1.25196655,57473.0,57467.0,0.10725655]
[1617510266229,1.25196655,57473.0,57468.0,0.0529]
[1617510266427,0.25196655,57473.0,57468.0,0.0529]
[1617510266929,0.25196655,57473.0,57467.0,0.10725655]
[1617510267331,0.0528,57472.0,57467.0,0.10725655]
[1617510268432,0.0528,57471.0,57467.0,0.10725655]
[1617510271033,0.25196655,57473.0,57467.0,0.10725655]
[1617510272436,1.0,57472.0,57467.0,0.10725655]
[1617510272636,0.0519,57471.0,57467.0,0.10725655]
[1617510273436,1.25196655,57473.0,57467.0,0.10725655]
[1617510273636,0.25196655,57473.0,57467.0,0.10725655]
[1617510276649,0.14471,57473.0,57467.0,0.10725655]
[1617510276842,0.10725655,57481.0,57467.0,0.10725655]
[1617510277038,0.10725655,57481.0,57467.0,0.61198051]
[1617510277237,0.10725655,57481.0,57480.0,3.3145]
[1617510280241,1.0,57486.0,57480.0,3.3145]
[1617510280840,1.0,57486.0,57480.0,3.42175655]
[1617510280841,0.10725655,57481.0,57480.0,3.42175655]
[1617510281641,0.10725655,57481.0,57480.0,0.10725655]
[1617510283045,3.85435655,57481.0,57480.0,0.10725655]
[1617510283746,4.85435655,57481.0,57480.0,0.10725655]
[1617510285850,3.85435655,57481.0,57480.0,0.10725655]
[1617510286251,0.10725655,57481.0,57480.0,0.10725655]
[1617510286450,0.10725655,57481.0,57480.0,3.02635655]
[1617510288553,0.10725655,57481.0,57480.0,0.10725655]
[1617510289359,3.78135655,57481.0,57480.0,0.10725655]
[1617510290554,4.78135655,57481.0,57480.0,0.10725655]
[1617510293756,3.78135655,57481.0,57480.0,0.10725655]
[1617510296159,0.10725655,57481.0,57480.0,0.21848655]
[1617510296566,0.4793,57493.0,57480.0,0.21848655]
[1617510296961,0.4793,57493.0,57492.0,0.10725655]
[1617510297161,0.10725655,57494.0,57492.0,0.26671655]
[1617510297563,0.10725655,57494.0,57493.0,2.9534]
[1617510313391,3.5651,57497.0,57493.0,2.9534]
[1617510314191,3.5651,57497.0,57494.0,0.09174799]
[1617510314892,0.4561,57502.0,57494.0,0.09174799]
[1617510315291,0.4561,57502.0,57501.0,2.97195655]
[1617510315493,0.44702911,57505.0,57501.0,2.97195655]
[1617510315893,0.10725655,57508.0,57501.0,0.10725655]
[1617510315894,0.44702131,57506.0,57501.0,0.10725655]
[1617510316493,0.10725655,57508.0,57507.0,2.8201]
[1617510316694,0.44699905,57511.0,57507.0,2.9243]
[1617510316893,0.44698552,57513.0,57507.0,2.9243]
[1617510317293,0.44698552,57513.0,57512.0,0.10725655]
[1617510317493,0.44697477,57514.0,57512.0,0.10725655]
[1617510319194,0.10725655,57513.0,57512.0,0.10725655]
[1617510322097,0.44619962,57517.0,57512.0,0.10725655]
[1617510322898,0.44619423,57518.0,57512.0,0.10725655]
[1617510323299,0.10725655,57516.0,57512.0,0.10725655]
[1617510325903,1.10725655,57516.0,57512.0,0.10725655]
[1617510327205,0.10725655,57516.0,57512.0,0.10725655]
[1617510327806,0.44619075,57518.0,57512.0,0.10725655]
[1617510329010,0.44617208,57519.0,57512.0,0.10725655]
[1617510329210,0.44617208,57519.0,57507.0,2.9243]
[1617510329411,0.44617208,57519.0,57518.0,0.10725655]
[1617510329812,0.44617378,57520.0,57518.0,0.10725655]
[1617510330712,1.0,57531.0,57518.0,0.10725655]
[1617510330713,0.44616423,57521.0,57518.0,0.10725655]
[1617510331112,0.44569295,57526.0,57518.0,0.10725655]
[1617510331315,0.44569295,57526.0,57525.0,0.10725655]
[1617510331514,0.44569295,57526.0,57525.0,0.25192655]
[1617510331713,0.69566379,57530.0,57525.0,0.25192655]
[1617510331714,0.4901,57530.0,57525.0,0.25192655]
[1617510333514,3.29835655,57536.0,57525.0,0.25192655]
[1617510335416,3.29835655,57536.0,57535.0,0.10725655]
[1617510341932,4.29835655,57536.0,57535.0,0.10725655]
[1617510343331,3.29835655,57536.0,57535.0,0.10725655]
[1617510343531,3.29835655,57536.0,57494.0,0.0524]
[1617510343532,4.29835655,57536.0,57511.0,0.49964607]
[1617510343737,1.24747655,57536.0,57511.0,0.49964607]
[1617510343935,2.867,57519.0,57507.0,0.49980052]
[1617510344138,2.98469,57519.0,57507.0,0.49980052]
[1617510344334,2.98469,57519.0,57502.0,3.7382]
[1617510344335,2.98469,57519.0,57504.0,0.49962787]
[1617510344936,2.98469,57519.0,57506.0,0.49936759]
[1617510345336,2.98469,57519.0,57505.0,0.49930249]
[1617510345535,3.09194655,57519.0,57518.0,0.10725655]
[1617510346235,0.22494655,57519.0,57518.0,0.10725655]
[1617510347038,0.22494655,57519.0,57518.0,3.65175655]
[1617510347639,0.10725655,57519.0,57518.0,3.65175655]
[1617510350939,0.25119655,57519.0,57518.0,3.65175655]
[1617510351439,0.25119655,57519.0,57518.0,0.10725655]
[1617510351842,1.25119655,57519.0,57518.0,0.10725655]
[1617510352040,4.02039655,57519.0,57518.0,0.10725655]
[1617510353040,1.25119655,57519.0,57518.0,0.10725655]
[1617510353242,0.25119655,57519.0,57518.0,3.71475655]
[1617510354344,0.10725655,57519.0,57518.0,3.71475655]
[1617510356950,1.10725655,57519.0,57518.0,3.71475655]
[1617510360151,1.10725655,57519.0,57518.0,0.10725655]
[1617510360352,1.10725655,57519.0,57503.0,0.50060868]
[1617510360551,1.10725655,57519.0,57494.0,0.56068172]
[1617510360552,3.80365655,57519.0,57502.0,0.5006066]
[1617510360952,0.99920524,57513.0,57502.0,0.5006066]
[1617510361152,2.80365655,57519.0,57497.0,0.50120411]
[1617510361353,1.0,57507.0,57497.0,0.50120411]
[1617510361553,1.12711,57507.0,57504.0,0.10725655]
[1617510361752,1.0,57506.0,57504.0,0.10725655]
[1617510361952,1.12711,57507.0,57504.0,0.10725655]
[1617510362352,0.12711,57507.0,57504.0,0.10725655]
[1617510363553,0.10725655,57505.0,57504.0,0.10725655]
[1617510365056,0.10725655,57505.0,57504.0,3.35735655]
[1617510367462,0.12711,57507.0,57504.0,3.35735655]
[1617510367662,2.9992,57508.0,57504.0,3.35735655]
[1617510370566,0.10725655,57510.0,57504.0,0.10725655]
[1617510370767,0.10725655,57510.0,57509.0,2.9485]
[1617510377177,0.44636457,57525.0,57509.0,2.9485]
[1617510377178,1.0,57519.0,57509.0,2.9485]
[1617510377377,0.44636457,57525.0,57509.0,2.9485]
[1617510377577,0.4463564,57526.0,57524.0,0.10725655]
[1617510377776,0.4463564,57526.0,57524.0,3.84568655]
[1617510377979,0.44634819,57529.0,57524.0,3.84568655]
[1617510378578,1.4654,57531.0,57524.0,3.84568655]
[1617510378979,1.0,57531.0,57524.0,3.84568655]
[1617510379680,1.0,57531.0,57530.0,0.10725655]
[1617510383383,0.10725655,57532.0,57530.0,0.10725655]
[1617510388495,1.0,57531.0,57530.0,0.10725655]
[1617510388694,1.10792,57531.0,57530.0,0.10725655]
[1617510392698,1.0,57531.0,57530.0,0.10725655]
[1617510392899,0.10725655,57532.0,57530.0,0.10725655]
[1617510393098,0.10725655,57532.0,57530.0,0.23828655]
[1617510393299,0.50712485,57542.0,57530.0,0.23828655]
[1617510393300,0.44648166,57537.0,57530.0,0.23828655]
[1617510393500,0.44648166,57537.0,57536.0,3.4836]
[1617510393700,0.44648166,57537.0,57536.0,3.59085655]
[1617510394099,0.44646072,57538.0,57536.0,3.59085655]
[1617510394500,1.0,57541.0,57536.0,3.59085655]
[1617510394501,0.44645925,57539.0,57536.0,3.59085655]
[1617510398307,1.44645925,57539.0,57536.0,3.59085655]
[1617510398709,1.0,57538.0,57536.0,3.59085655]
[1617510399107,1.0,57537.0,57536.0,3.59085655]
[1617510399306,1.0,57537.0,57536.0,0.10725655]
[1617510399506,4.44198,57537.0,57520.0,0.50024607]
[1617510399709,4.88844377,57537.0,57525.0,0.10725655]
[1617510399907,0.61884377,57537.0,57525.0,0.10725655]
[1617510400107,0.44647954,57533.0,57525.0,0.10725655]
[1617510400308,3.5223,57526.0,57525.0,0.10725655]
[1617510400507,3.5223,57526.0,57514.0,0.50183212]
[1617510400708,3.5223,57526.0,57511.0,0.50216276]
[1617510401108,3.5223,57526.0,57510.0,0.50230775]
[1617510401314,1.0,57522.0,57510.0,0.50230775]
[1617510401510,1.15877,57522.0,57512.0,0.50215665]
[1617510401710,1.0,57521.0,57518.0,0.10725655]
[1617510402709,0.15877,57522.0,57518.0,0.10725655]
[1617510402908,1.0,57519.0,57518.0,0.10725655]
[1617510403811,1.10725655,57519.0,57518.0,0.10725655]
[1617510406919,0.10725655,57519.0,57518.0,0.10725655]
[1617510407118,3.31865655,57519.0,57518.0,0.10725655]
[1617510407318,4.31865655,57519.0,57518.0,0.10725655]
[1617510407518,4.31865655,57519.0,57512.0,0.50252967]
[1617510407719,0.10725655,57513.0,57512.0,0.50252967]
[1617510408119,0.10725655,57513.0,57511.0,0.60989986]
[1617510412026,0.10725655,57513.0,57512.0,0.50286811]
[1617510412931,0.10725655,57513.0,57512.0,0.64306811]
[1617510413126,0.10725655,57513.0,57512.0,4.34366811]
[1617510413628,0.10725655,57513.0,57512.0,0.73478113]
[1617510413927,3.07825655,57513.0,57512.0,0.73478113]
[1617510414128,3.07825655,57513.0,57512.0,0.50286811]
[1617510420435,0.10725655,57513.0,57512.0,0.50286811]
[1617510421636,3.77655655,57513.0,57512.0,0.50286811]
[1617510421838,4.77655655,57513.0,57512.0,0.09171624]
[1617510422241,4.77655655,57513.0,57509.0,0.50390864]
[1617510422641,1.0,57510.0,57509.0,0.50390864]
[1617510422840,1.0,57510.0,57507.0,0.50417617]
[1617510423240,1.0,57510.0,57509.0,3.2255]
[1617510423641,1.0,57510.0,57509.0,3.31722252]
[1617510429852,1.0,57510.0,57509.0,0.09172252]
[1617510430250,1.0,57510.0,57500.0,0.10725655]
[1617510430251,1.0,57510.0,57503.0,0.50455755]
[1617510430652,4.198,57504.0,57503.0,0.50455755]
[1617510430851,4.32969,57504.0,57503.0,0.50455755]
[1617510431552,3.32969,57504.0,57503.0,0.50455755]
[1617510431953,4.43694655,57504.0,57503.0,0.50455755]
[1617510434761,4.43694655,57504.0,57501.0,0.50480786]
[1617510435160,1.0,57502.0,57501.0,0.50480786]
[1617510435362,1.0,57502.0,57500.0,0.10725655]
[1617510435961,1.0,57501.0,57500.0,0.10725655]
[1617510439764,3.43694655,57504.0,57500.0,0.10725655]
[1617510439963,1.0,57501.0,57500.0,0.10725655]
[1617510440564,1.0,57501.0,57497.0,0.50517854]
[1617510440966,4.6508,57498.0,57496.0,0.50421295]
[1617510441366,4.6508,57498.0,57491.0,0.50456476]
[1617510441565,0.2,57497.0,57491.0,0.50456476]
[1617510441765,1.2,57497.0,57491.0,0.50456476]
[1617510441966,1.0,57492.0,57489.0,0.50480229]
[1617510442166,0.10725655,57490.0,57489.0,0.50480229]
[1617510442367,0.10725655,57490.0,57475.0,0.10725655]
[1617510442368,0.10725655,57490.0,57488.0,0.50509699]
[1617510442769,1.10725655,57490.0,57488.0,0.50509699]
[1617510442967,1.0,57489.0,57488.0,0.50509699]
[1617510443769,1.0,57489.0,57486.0,0.50521574]
[1617510444169,1.0,57489.0,57485.0,0.50527862]
[1617510444369,1.0,57487.0,57485.0,0.50527862]
[1617510444570,1.0,57487.0,57484.0,0.50534969]
[1617510444868,1.0,57486.0,57483.0,0.50546572]
[1617510445170,1.0,57485.0,57483.0,0.50546572]
[1617510445569,1.0,57484.0,57483.0,0.50546572]
[1617510445771,1.0,57484.0,57482.0,0.50550957]
[1617510446172,0.10725655,57483.0,57482.0,0.50550957]
[1617510447374,1.10725655,57483.0,57482.0,0.50550957]
[1617510447978,1.10725655,57483.0,57481.0,0.50567974]
[1617510449577,1.0,57482.0,57481.0,0.50567974]
[1617510449778,1.0,57482.0,57473.0,0.56626835]
[1617510450177,0.10725655,57474.0,57471.0,0.56642202]
[1617510450378,0.27401655,57474.0,57471.0,0.56642202]
[1617510450580,0.27401655,57474.0,57473.0,0.50578185]
[1617510451681,1.27401655,57474.0,57473.0,0.50578185]
[1617510454885,0.27401655,57474.0,57473.0,0.50578185]
[1617510455285,1.27401655,57474.0,57473.0,0.50578185]
[1617510455484,4.30851655,57474.0,57473.0,0.50578185]
[1617510456688,1.27401655,57474.0,57473.0,0.50578185]
[1617510457089,1.27401655,57474.0,57473.0,3.01918185]
[1617510457489,1.27401655,57474.0,57473.0,3.11093762]
[1617510460489,0.27401655,57474.0,57473.0,3.11093762]
[1617510460892,1.27401655,57474.0,57473.0,3.11093762]
[1617510463091,1.27401655,57474.0,57473.0,2.60515577]
[1617510463893,1.27401655,57474.0,57473.0,0.09175577]
[1617510464492,1.27401655,57474.0,57470.0,0.10725655]
[1617510464891,3.2576,57471.0,57470.0,0.10725655]
[1617510466097,4.2576,57471.0,57470.0,0.10725655]
[1617510481510,3.2576,57471.0,57470.0,0.10725655]
[1617510481713,4.2576,57471.0,57470.0,0.10725655]
[1617510486217,4.2576,57471.0,57461.0,3.62564616]
[1617510486417,0.01549282,57462.0,57461.0,0.50454616]
[1617510486617,3.41805282,57462.0,57459.0,0.50489808]
[1617510487020,3.41805282,57462.0,57453.0,0.10725655]
[1617510487021,3.41805282,57462.0,57457.0,0.50506094]
[1617510487419,3.41805282,57462.0,57453.0,0.10725655]
[1617510487420,3.41805282,57462.0,57458.0,0.50502835]
[1617510487820,3.41805282,57462.0,57456.0,0.50518499]
[1617510488319,3.41805282,57462.0,57461.0,0.10725655]
[1617510490220,0.15635282,57462.0,57461.0,0.10725655]
[1617510490620,1.15635282,57462.0,57461.0,0.10725655]
[1617510492524,0.15635282,57462.0,57461.0,0.10725655]
[1617510492724,1.15635282,57462.0,57461.0,0.10725655]
[1617510494628,4.11775282,57462.0,57461.0,0.10725655]
[1617510494828,3.11775282,57462.0,57461.0,0.10725655]
[1617510495029,4.11775282,57462.0,57461.0,0.10725655]
[1617510497534,1.15635282,57462.0,57461.0,0.10725655]
[1617510497733,0.15635282,57462.0,57461.0,0.10725655]
[1617510498233,0.15635282,57462.0,57461.0,3.52045655]
[1617510499135,1.15635282,57462.0,57461.0,3.52045655]
[1617510499737,1.15635282,57462.0,57461.0,0.10725655]
[1617510500336,1.15635282,57462.0,57461.0,3.45905655]
[1617510500936,1.15635282,57462.0,57461.0,3.55084716]
[1617510501737,1.15635282,57462.0,57461.0,0.19904716]
[1617510501938,1.15635282,57462.0,57461.0,0.10725655]
[1617510502341,4.18115282,57462.0,57461.0,0.10725655]
[1617510503739,1.15635282,57462.0,57461.0,0.10725655]
[1617510503940,1.15635282,57462.0,57461.0,3.21195655]
[1617510505441,0.15635282,57462.0,57461.0,3.21195655]
[1617510505641,1.15635282,57462.0,57461.0,3.21195655]
[1617510519661,1.15635282,57462.0,57461.0,0.10725655]
[1617510521164,4.52205282,57462.0,57461.0,0.10725655]
[1617510522264,3.52205282,57462.0,57461.0,0.10725655]
[1617510522465,4.52205282,57462.0,57461.0,0.10725655]
[1617510525073,1.15635282,57462.0,57461.0,0.10725655]
[1617510525272,0.15635282,57462.0,57461.0,3.71065655]
[1617510525474,1.15635282,57462.0,57461.0,3.71065655]
[1617510525672,1.01549282,57462.0,57461.0,3.71065655]
[1617510528076,1.0,57462.0,57461.0,0.10725655]
[1617510528275,0.44715425,57472.0,57461.0,3.20795655]
[1617510528475,1.0,57475.0,57461.0,3.20795655]
[1617510528476,0.44715263,57475.0,57461.0,3.20795655]
[1617510528675,0.44715263,57475.0,57474.0,0.10725655]
[1617510528876,0.55437905,57478.0,57474.0,0.26851655]
[1617510529076,1.0,57475.0,57474.0,0.26851655]
[1617510531581,1.0,57476.0,57474.0,0.26851655]
[1617510531782,1.10725655,57478.0,57474.0,0.26851655]
[1617510533083,0.10725655,57478.0,57474.0,0.26851655]
[1617510533682,1.0,57480.0,57474.0,0.26851655]
[1617510535085,1.0,57477.0,57474.0,0.26851655]
[1617510535285,1.14587,57477.0,57474.0,0.10725655]
[1617510535487,1.0,57475.0,57474.0,0.10725655]
[1617510538190,1.0,57477.0,57474.0,0.10725655]
[1617510538592,3.7599,57475.0,57474.0,0.10725655]
[1617510538790,4.00807655,57475.0,57464.0,0.10725655]
[1617510539191,1.0,57465.0,57464.0,0.10725655]
[1617510540694,1.0,57465.0,57450.0,0.56860595]
[1617510540894,1.10725655,57465.0,57457.0,0.10725655]
[1617510541997,1.0,57458.0,57457.0,0.10725655]
[1617510542196,1.12802,57458.0,57457.0,0.10725655]
[1617510542798,1.23527655,57458.0,57457.0,0.10725655]
[1617510546102,4.58137655,57458.0,57457.0,0.10725655]
[1617510549504,0.23527655,57458.0,57457.0,0.10725655]
[1617510551207,1.23527655,57458.0,57457.0,0.10725655]
[1617510554009,0.23527655,57458.0,57457.0,0.10725655]
[1617510554209,0.10725655,57458.0,57457.0,0.10725655]
[1617510555410,0.22807655,57458.0,57457.0,0.10725655]
[1617510565523,0.10725655,57458.0,57457.0,0.10725655]